fUST/lending_fUST_20250602
["ID","MTS","AMOUNT","RATE_DAILY","PERIOD"]
[363708236,1748832641733,-564.53,0.00021284,2]
[363708237,1748832641743,-430.0,0.00021284,2]
[363708238,1748832641753,-877.74,0.00021284,2]
[363708239,1748832641763,-430.0,0.00021285,2]
[363708240,1748832641773,-894.54886701,0.00021314,5]
[363708241,1748832641783,-502.08773478,0.00021386,2]
[363708242,1748832641792,-500.0,0.00021386,2]
[363708243,1748832641803,-600.0,0.00021386,2]
[363708244,1748832641813,-500.0,0.00021386,2]
[363708245,1748832641824,-500.0,0.00021386,2]
[363708246,1748832641834,-403.0,0.00021424,2]
[363708247,1748832641847,-587.0,0.00021424,2]
[363708248,1748832641857,-894.54886701,0.00021486,5]
[363708249,1748832641867,-430.0,0.00021558,2]
[363708250,1748832641877,-430.0,0.00021558,2]
[363708251,1748832641887,-1076.91,0.00021558,2]
[363708252,1748832641897,-430.0,0.00021558,2]
[363708253,1748832641907,-564.53,0.00021558,2]
[363708254,1748832641917,-430.0,0.00021558,2]
[363708255,1748832641927,-877.74,0.00021558,2]
[363708256,1748832641937,-430.0,0.00021559,2]
[363708257,1748832641947,-151.53913761,0.00021578,2]
[363708258,1748832641956,-953.26,0.00021643,4]
[363708259,1748832641966,-894.54886701,0.00021659,5]
[363708260,1748832641975,-1179.65,0.0002168,2]
[363708261,1748832641985,-4542.74,0.000217,2]
[363708262,1748832641994,-894.54886701,0.00021831,6]
[363708263,1748832642004,-430.0,0.00021832,2]
[363708264,1748832642013,-430.0,0.00021832,2]
[363708265,1748832642023,-1076.91,0.00021832,2]
[363708266,1748832642033,-430.0,0.00021832,2]
[363708267,1748832642042,-564.53,0.00021832,2]
[363708268,1748832642052,-430.0,0.00021832,2]
[363708269,1748832642061,-877.74,0.00021832,2]
[363708270,1748832642070,-430.0,0.00021833,2]
[363708271,1748832642081,-5000.0,0.00021874,2]
[363708272,1748832642093,-500.0,0.00021917,2]
[363708273,1748832642104,-500.0,0.00021917,2]
[363708274,1748832642113,-500.0,0.00021917,2]
[363708275,1748832642123,-500.0,0.00021917,2]
[363708276,1748832642132,-500.0,0.00021917,2]
[363708277,1748832642142,-500.0,0.00021917,2]
[363708278,1748832642151,-500.0,0.00021917,2]
[363708279,1748832642161,-500.0,0.00021917,2]
[363708280,1748832642170,-500.0,0.00021917,2]
[363708281,1748832642180,-500.0,0.00021917,2]
[363708282,1748832642189,-500.0,0.00021917,2]
[363708283,1748832642199,-500.0,0.00021917,2]
[363708284,1748832642208,-500.0,0.00021917,2]
[363708285,1748832642217,-500.0,0.00021917,2]
[363708286,1748832642226,-500.0,0.00021917,2]
[363708287,1748832642236,-500.0,0.00021917,2]
[363708288,1748832642245,-500.0,0.00021917,2]
[363708289,1748832642255,-500.0,0.00021917,2]
[363708290,1748832642264,-500.0,0.00021917,2]
[363708291,1748832642273,-500.0,0.00021917,2]
[363708292,1748832642283,-500.0,0.00021917,2]
[363708293,1748832642293,-500.0,0.00021917,2]
[363708294,1748832642303,-327.55331113,0.00021917,2]
[363708295,1748832642313,-505.09070126,0.00021917,2]
[363708296,1748832642322,-1798.07540681,0.00021918,2]
[363708297,1748832642332,-323.0767398,0.00021918,7]
[363708298,1748832642345,-150.0,0.00021918,2]
[363708299,1748832642355,-635.05710346,0.00021918,2]
[363708300,1748832642365,-4861.7618578,0.00021925,2]
[363708301,1748832642375,-1200.0,0.00021934,2]
[363708302,1748832642385,-336.35322719,0.00021934,2]
[363708303,1748832642395,-1000.0,0.00021934,2]
[363708304,1748832642405,-360.08328903,0.00021973,2]
[363708305,1748832642415,-178.0,0.00022,2]
[363708306,1748832642424,-172.0,0.00022,2]
[363708307,1748832642434,-39345.73,0.00022,2]
[363708308,1748832642444,-1601.72,0.00022,7]
[363708309,1748832642454,-151.0,0.00022,4]
[363708310,1748832642463,-102995.34,0.00022,7]
[363708311,1748832642473,-188.0,0.00022,2]
[363708312,1748832642483,-12668.79298183,0.00022,7]
[363708313,1748832642492,-894.54886701,0.00022003,6]
[363708314,1748832642502,-364.4406513,0.00022055,2]
[363708315,1748832642511,-364.4406513,0.00022055,2]
[363708316,1748832642521,-364.4406513,0.00022055,2]
[363708317,1748832642531,-430.0,0.00022106,2]
[363708318,1748832642540,-430.0,0.00022106,2]
[363708319,1748832642549,-1076.91,0.00022106,2]
[363708320,1748832642559,-430.0,0.00022106,2]
[363708321,1748832642568,-564.53,0.00022106,2]
[363708322,1748832642577,-430.0,0.00022106,2]
[363708323,1748832642588,-877.74,0.00022106,2]
[363708324,1748832642601,-430.0,0.00022107,2]
[363708325,1748832642611,-500.0,0.00022107,2]
[363708326,1748832642621,-299.70090114,0.00022125,19]
[363708327,1748832642631,-894.54886701,0.00022176,6]
[363708328,1748832642641,-953.26,0.00022191,5]
[363708329,1748832642651,-176.300841,0.00022284,2]
[363708330,1748832642662,-500.0,0.00022287,2]
[363708331,1748832642673,-501.29610451,0.00022287,2]
[363708332,1748832642684,-500.0,0.00022287,2]
[363708333,1748832642694,-239.91739447,0.00022287,2]
[363708334,1748832642704,-500.0,0.00022287,2]
[363708335,1748832642714,-561.97811827,0.00022287,2]
[363708336,1748832642724,-151.0,0.000223,5]
[363708337,1748832642734,-900.0,0.00022321,2]
[363708338,1748832642744,-299.70090114,0.00022333,20]
[363708339,1748832642754,-894.54886701,0.00022348,7]
[363708340,1748832642764,-500.0,0.0002235,2]
[363708341,1748832642774,-500.0,0.0002235,2]
[363708342,1748832642784,-430.0,0.0002238,2]
[363708343,1748832642794,-430.0,0.0002238,2]
[363708344,1748832642804,-1076.91,0.0002238,2]
[363708345,1748832642813,-430.0,0.0002238,2]
[363708346,1748832642823,-564.53,0.0002238,2]
[363708347,1748832642833,-430.0,0.0002238,2]
[363708348,1748832642845,-877.74,0.0002238,2]
[363708349,1748832642855,-430.0,0.00022381,2]
[363708350,1748832642865,-500.0,0.00022381,2]
[363708351,1748832642875,-150.82860095,0.00022382,2]
[363708352,1748832642884,-151.0,0.000224,8]
[363708353,1748832642894,-500.34728116,0.000224,2]
[363708354,1748832642904,-168.77256269,0.000224,2]
[363708355,1748832642914,-154.74433321,0.00022411,2]
[363708356,1748832642924,-160.22927135,0.00022433,2]
[363708357,1748832642934,-158.74462173,0.00022433,2]
[363708358,1748832642944,-500.0,0.00022433,2]
[363708359,1748832642955,-160.22264998,0.00022433,2]
[363708360,1748832642965,-1800.0,0.00022482,2]
[363708361,1748832642974,-1500.0,0.00022482,2]
[363708362,1748832642984,-894.54886701,0.00022521,7]
[363708363,1748832642994,-299.70090114,0.0002254,22]
[363708364,1748832643004,-4861.7618578,0.000226,2]
[363708365,1748832643014,-430.0,0.00022654,2]
[363708366,1748832643023,-430.0,0.00022654,2]
[363708368,1748832643033,-1076.91,0.00022654,2]
[363708369,1748832643043,-430.0,0.00022654,2]
[363708370,1748832643053,-564.53,0.00022654,2]
[363708371,1748832643061,-430.0,0.00022654,2]
[363708372,1748832643071,-877.74,0.00022654,2]
[363708373,1748832643081,-430.0,0.00022655,2]
[363708374,1748832643092,-500.0,0.00022655,2]
[363708375,1748832643102,-154.74433321,0.00022658,2]
[363708376,1748832643111,-151.0,0.00022685,2]
[363708377,1748832643121,-155.07391524,0.00022685,2]
[363708378,1748832643132,-2500.0,0.00022685,2]
[363708379,1748832643141,-1500.0,0.00022685,2]
[363708380,1748832643151,-2500.0,0.00022685,2]
[363708381,1748832643161,-1500.0,0.00022685,2]
[363708382,1748832643171,-2500.0,0.00022685,2]
[363708383,1748832643181,-1500.0,0.00022685,2]
[363708384,1748832643190,-2500.0,0.00022685,2]
[363708385,1748832643202,-1500.0,0.00022685,2]
[363708386,1748832643211,-207.4,0.00022685,2]
[363708387,1748832643222,-1500.0,0.00022685,2]
[363708388,1748832643232,-2500.0,0.00022685,2]
[363708389,1748832643242,-1500.0,0.00022685,2]
[363708390,1748832643251,-5000.0,0.00022685,2]
[363708391,1748832643261,-2500.0,0.00022685,2]
[363708392,1748832643270,-1500.0,0.00022685,2]
[363708393,1748832643280,-2500.0,0.00022685,2]
[363708394,1748832643290,-1500.0,0.00022685,2]
[363708395,1748832643300,-2500.0,0.00022685,2]
[363708396,1748832643310,-1500.0,0.00022685,2]
[363708397,1748832643319,-2500.0,0.00022685,2]
[363708398,1748832643329,-1500.0,0.00022685,2]
[363708399,1748832643340,-2500.0,0.00022685,2]
[363708401,1748832643350,-1500.0,0.00022685,2]
[363708402,1748832643359,-1500.0,0.00022685,2]
[363708403,1748832643369,-2500.0,0.00022685,2]
[363708404,1748832643378,-1500.0,0.00022685,2]
[363708405,1748832643387,-2500.0,0.00022685,2]
[363708407,1748832643397,-1500.0,0.00022685,2]
[363708408,1748832643406,-2500.0,0.00022685,2]
[363708409,1748832643416,-1500.0,0.00022685,2]
[363708410,1748832643425,-2272.84540194,0.00022685,2]
[363708411,1748832643435,-894.54886701,0.00022693,7]
[363708412,1748832643445,-5000.0,0.00022698,2]
[363708414,1748832643455,-501.6427265,0.000227,2]
[363708415,1748832643464,-151.0,0.000227,8]
[363708416,1748832643474,-5000.0,0.00022726,2]
[363708417,1748832643483,-953.26,0.00022739,6]
[363708418,1748832643492,-299.70090114,0.00022748,23]
[363708419,1748832643502,-5000.0,0.00022768,3]
[363708420,1748832643512,-7519.12824661,0.00022785,2]
[363708421,1748832643523,-5000.0,0.00022785,2]
[363708422,1748832643532,-5000.0,0.00022785,2]
[363708423,1748832643541,-5000.0,0.00022785,2]
[363708424,1748832643551,-5000.0,0.00022785,2]
[363708425,1748832643560,-499.94,0.000228,7]
[363708426,1748832643569,-166.0081366,0.00022804,2]
[363708427,1748832643578,-5000.0,0.00022812,2]
[363708428,1748832643594,-1000.0,0.00022835,2]
[363708429,1748832643604,-1000.0,0.00022835,2]
[363708430,1748832643616,-1000.0,0.00022835,2]
[363708431,1748832643625,-894.54886701,0.00022866,8]
[363708432,1748832643636,-250.60648377,0.00022876,2]
[363708433,1748832643646,-4620.93,0.00022886,2]
[363708434,1748832643655,-1000.0,0.00022898,2]
[363708435,1748832643664,-501.5628532,0.00022898,2]
[363708436,1748832643674,-160.0,0.00022899,2]
[363708437,1748832643684,-102995.34,0.000229,7]
[363708438,1748832643694,-154.74433321,0.00022904,2]
[363708439,1748832643704,-430.0,0.00022928,2]
[363708440,1748832643712,-430.0,0.00022928,2]
[363708441,1748832643720,-1076.91,0.00022928,2]
[363708442,1748832643729,-430.0,0.00022928,2]
[363708443,1748832643738,-564.53,0.00022928,2]
[363708444,1748832643748,-430.0,0.00022928,2]
[363708445,1748832643758,-877.74,0.00022928,2]
[363708447,1748832643768,-207.85,0.00022929,2]
[363708448,1748832643777,-500.0,0.00022929,2]
[363708449,1748832643787,-299.70090114,0.00022956,24]
[363708450,1748832643796,-500.82475842,0.00022973,2]
[363708451,1748832643806,-500.0,0.00022973,2]
[363708452,1748832643816,-501.46558268,0.00022973,2]
[363708453,1748832643826,-272.22500081,0.00022973,2]
[363708454,1748832643836,-578.69287274,0.00022973,2]
[363708455,1748832643846,-1000.0,0.00022981,2]
[363708456,1748832643856,-542218.31015692,0.00022999,2]
[363708457,1748832643897,-2015.19437004,0.00022999,2]
[363708458,1748832643909,-142219.99540672,0.00022999,2]
[363708459,1748832643921,-1007.0,0.00022999,2]
[363708460,1748832643934,-28281.5914916,0.00022999,2]
[363708461,1748832643990,-307.0475778,0.00022055,2]
[363708462,1748832644001,-81.75655318,0.00022999,2]
[363708470,1748832646750,-4845.39638205,0.000208,2]
[363708471,1748832646763,-154.60361795,0.000208,2]
[363708472,1748832646773,-36964.03212956,0.00022999,2]
[363708473,1748832646785,-16232.2703132,0.00022999,2]
[363708474,1748832647159,-1157.42053269,0.00022999,2]
[363708475,1748832647174,-257.63357897,0.00022999,2]
[363708481,1748833329634,1018.0,0.0001552,2]
[363708484,1748833620102,245.660377,0.00013699,2]
[363708542,1748833831917,-324.74381532,0.00017814,2]
[363708544,1748833831928,-1272.54478092,0.00017814,2]
[363708548,1748833831940,-451.29401631,0.00017814,2]
[363708550,1748833831951,-516.18361356,0.00017814,2]
[363708553,1748833831968,-2435.23377389,0.00017814,2]
[363708555,1748833831978,-410.29408316,0.00017995,2]
[363708557,1748833831987,-300.0,0.00017995,2]
[363708559,1748833831997,-430.0,0.00017996,2]
[363708561,1748833832006,-579.1,0.00018515,2]
[363708562,1748833832016,-374.0,0.00018755,2]
[363708564,1748833832026,-500.0,0.00018756,2]
[363708566,1748833832038,-300.0,0.00018814,2]
[363708568,1748833832048,-430.0,0.00018815,2]
[363708570,1748833832058,-430.0,0.00018815,2]
[363708572,1748833832067,-430.0,0.00018815,2]
[363708574,1748833832077,-579.56,0.00018815,2]
[363708578,1748833832087,-430.0,0.00018815,2]
[363708580,1748833832097,-430.0,0.00018815,2]
[363708582,1748833832107,-430.0,0.00018815,2]
[363708584,1748833832116,-446.72,0.00018815,2]
[363708586,1748833832126,-455.3847995,0.00018815,2]
[363708588,1748833832135,-430.0,0.00018815,2]
[363708590,1748833832145,-430.0,0.00018815,2]
[363708592,1748833832155,-956.82,0.00018815,2]
[363708594,1748833832164,-430.0,0.00018815,2]
[363708596,1748833832174,-430.0,0.00018815,2]
[363708598,1748833832185,-430.0,0.00018815,2]
[363708599,1748833832195,-430.0,0.00018815,2]
[363708601,1748833832210,-430.0,0.00018815,2]
[363708603,1748833832219,-650.71,0.00018815,2]
[363708605,1748833832229,-905.34,0.00018815,2]
[363708607,1748833832239,-430.0,0.00018815,2]
[363708609,1748833832248,-430.0,0.00018815,2]
[363708611,1748833832258,-430.0,0.00018815,2]
[363708613,1748833832267,-430.0,0.00018815,2]
[363708615,1748833832276,-430.0,0.00018815,2]
[363708617,1748833832286,-448.5000392,0.00018815,2]
[363708619,1748833832295,-438.04204218,0.00018816,2]
[363708620,1748833832304,-430.0,0.00018816,2]
[363708621,1748833832313,-430.0,0.00018816,2]
[363708622,1748833832322,-1281.85672664,0.000189,2]
[363708623,1748833832331,-1404.13787655,0.000189,2]
[363708624,1748833832341,-156.64884017,0.00018989,2]
[363708625,1748833832350,-1500.0,0.00019033,2]
[363708626,1748833832359,-151.0,0.00019033,2]
[363708627,1748833832369,-250.08935969,0.0001906,2]
[363708628,1748833832378,-1281.85672635,0.00019072,2]
[363708629,1748833832387,-487.65257868,0.00019089,2]
[363708630,1748833832397,-430.0,0.00019089,2]
[363708631,1748833832406,-430.0,0.00019089,2]
[363708632,1748833832415,-579.56,0.00019089,2]
[363708633,1748833832425,-430.0,0.00019089,2]
[363708634,1748833832434,-430.0,0.00019089,2]
[363708635,1748833832443,-430.0,0.00019089,2]
[363708636,1748833832452,-446.72,0.00019089,2]
[363708637,1748833832462,-430.0,0.00019089,2]
[363708638,1748833832471,-430.0,0.00019089,2]
[363708639,1748833832480,-956.82,0.00019089,2]
[363708640,1748833832489,-430.0,0.00019089,2]
[363708641,1748833832498,-430.0,0.00019089,2]
[363708643,1748833832508,-430.0,0.00019089,2]
[363708645,1748833832517,-430.0,0.00019089,2]
[363708646,1748833832527,-430.0,0.00019089,2]
[363708649,1748833832537,-650.71,0.00019089,2]
[363708650,1748833832547,-905.34,0.00019089,2]
[363708652,1748833832557,-430.0,0.00019089,2]
[363708654,1748833832566,-430.0,0.00019089,2]
[363708656,1748833832576,-430.0,0.00019089,2]
[363708659,1748833832586,-430.0,0.00019089,2]
[363708660,1748833832595,-430.0,0.00019089,2]
[363708663,1748833832606,-430.0,0.0001909,2]
[363708666,1748833832615,-430.0,0.0001909,2]
[363708669,1748833832625,-500.0,0.00019178,2]
[363708672,1748833832634,-500.0,0.00019178,2]
[363708674,1748833832643,-500.0,0.00019178,2]
[363708676,1748833832653,-500.0,0.00019178,2]
[363708678,1748833832662,-500.0,0.00019178,2]
[363708680,1748833832672,-224.88043121,0.00019178,2]
[363708682,1748833832681,-500.0,0.00019178,2]
[363708684,1748833832691,-500.0,0.00019178,2]
[363708686,1748833832700,-500.0,0.00019178,2]
[363708688,1748833832710,-500.0,0.00019178,2]
[363708690,1748833832720,-500.0,0.00019178,2]
[363708692,1748833832729,-500.0,0.00019178,2]
[363708693,1748833832739,-430.0,0.00019178,2]
[363708694,1748833832749,-430.0,0.00019178,2]
[363708695,1748833832759,-151.0,0.00019178,2]
[363708696,1748833832768,-189.551724,0.00019178,2]
[363708697,1748833832777,-156.587,0.00019233,2]
[363708698,1748833832800,-1281.85672635,0.00019245,2]
[363708699,1748833832810,-162.380719,0.00019288,2]
[363708700,1748833832820,-168.3888056,0.00019343,2]
[363708701,1748833832829,-430.0,0.00019363,2]
[363708702,1748833832839,-430.0,0.00019363,2]
[363708703,1748833832849,-579.56,0.00019363,2]
[363708704,1748833832859,-430.0,0.00019363,2]
[363708705,1748833832869,-430.0,0.00019363,2]
[363708706,1748833832878,-430.0,0.00019363,2]
[363708707,1748833832888,-446.72,0.00019363,2]
[363708708,1748833832899,-430.0,0.00019363,2]
[363708709,1748833832909,-430.0,0.00019363,2]
[363708710,1748833832919,-956.82,0.00019363,2]
[363708711,1748833832930,-430.0,0.00019363,2]
[363708712,1748833832940,-430.0,0.00019363,2]
[363708713,1748833832950,-430.0,0.00019363,2]
[363708714,1748833832960,-430.0,0.00019363,2]
[363708715,1748833832971,-430.0,0.00019363,2]
[363708716,1748833832981,-650.71,0.00019363,2]
[363708717,1748833832991,-905.34,0.00019363,2]
[363708718,1748833833001,-430.0,0.00019363,2]
[363708719,1748833833010,-430.0,0.00019363,2]
[363708720,1748833833020,-430.0,0.00019363,2]
[363708721,1748833833030,-430.0,0.00019363,2]
[363708722,1748833833040,-430.0,0.00019363,2]
[363708723,1748833833051,-430.0,0.00019364,2]
[363708724,1748833833062,-430.0,0.00019364,2]
[363708725,1748833833072,-445.14733511,0.00019364,2]
[363708726,1748833833083,-1158.2,0.00019397,2]
[363708727,1748833833093,-174.61919141,0.00019398,2]
[363708728,1748833833104,-1281.85672635,0.00019417,2]
[363708729,1748833833114,-181.08010149,0.00019453,2]
[363708730,1748833833124,-187.78006525,0.00019508,2]
[363708731,1748833833136,-500.0,0.00019536,2]
[363708732,1748833833146,-194.72792766,0.00019563,2]
[363708733,1748833833157,-1281.85672635,0.0001959,2]
[363708734,1748833833167,-286.159,0.00019594,2]
[363708735,1748833833178,-201.93286099,0.00019618,2]
[363708736,1748833833188,-420.0,0.00019635,2]
[363708737,1748833833199,-430.0,0.00019637,2]
[363708738,1748833833211,-579.56,0.00019637,2]
[363708739,1748833833220,-430.0,0.00019637,2]
[363708740,1748833833230,-304.24876528,0.00019637,2]
[363708741,1748833833239,-430.0,0.00019637,2]
[363708742,1748833833250,-446.72,0.00019637,2]
[363708743,1748833833260,-430.0,0.00019637,2]
[363708744,1748833833270,-430.0,0.00019637,2]
[363708745,1748833833280,-956.82,0.00019637,2]
[363708746,1748833833295,-430.0,0.00019637,2]
[363708747,1748833833304,-430.0,0.00019637,2]
[363708748,1748833833314,-430.0,0.00019637,2]
[363708749,1748833833324,-430.0,0.00019637,2]
[363708750,1748833833334,-650.71,0.00019637,2]
[363708751,1748833833344,-905.34,0.00019637,2]
[363708752,1748833833354,-430.0,0.00019637,2]
[363708753,1748833833365,-430.0,0.00019637,2]
[363708754,1748833833375,-430.0,0.00019637,2]
[363708755,1748833833388,-430.0,0.00019637,2]
[363708756,1748833833398,-430.0,0.00019637,2]
[363708757,1748833833408,-430.0,0.00019638,2]
[363708758,1748833833419,-430.0,0.00019638,2]
[363708759,1748833833430,-500.0,0.00019655,2]
[363708760,1748833833441,-209.40437684,0.00019673,2]
[363708761,1748833833450,-577.1181603,0.00019682,2]
[363708762,1748833833461,-500.0,0.00019682,2]
[363708763,1748833833471,-500.0,0.00019682,2]
[363708764,1748833833481,-212.83419937,0.00019727,2]
[363708765,1748833833491,-160.0,0.00019727,2]
[363708766,1748833833502,-160.0,0.00019727,2]
[363708767,1748833833512,-160.0,0.00019728,2]
[363708768,1748833833657,-229.39799938,0.00019728,2]
[363708769,1748833833668,-160.0,0.00019728,2]
[363708770,1748833833678,-160.0,0.00019728,2]
[363708771,1748833833689,-842.5625,0.00019728,2]
[363708772,1748833833699,-423.56953423,0.00019728,2]
[363708773,1748833833709,-217.15233878,0.00019728,2]
[363708774,1748833833719,-500.0,0.00019743,2]
[363708775,1748833833729,-500.0,0.0001975,2]
[363708776,1748833833739,-1281.85672635,0.00019762,2]
[363708777,1748833833749,-500.0,0.00019773,2]
[363708778,1748833833758,-225.18697532,0.00019783,2]
[363708779,1748833833768,-233.51889341,0.00019838,2]
[363708780,1748833833778,-242.15909246,0.00019893,2]
[363708781,1748833833788,-430.0,0.00019911,2]
[363708782,1748833833807,-579.56,0.00019911,2]
[363708783,1748833833817,-430.0,0.00019911,2]
[363708784,1748833833826,-430.0,0.00019911,2]
[363708785,1748833833846,-446.72,0.00019911,2]
[363708786,1748833833859,-430.0,0.00019911,2]
[363708787,1748833833870,-430.0,0.00019911,2]
[363708788,1748833833881,-956.82,0.00019911,2]
[363708789,1748833833893,-430.0,0.00019911,2]
[363708790,1748833833904,-430.0,0.00019911,2]
[363708791,1748833833915,-430.0,0.00019911,2]
[363708792,1748833833925,-430.0,0.00019911,2]
[363708793,1748833833936,-650.71,0.00019911,2]
[363708794,1748833833948,-905.34,0.00019911,2]
[363708795,1748833833958,-430.0,0.00019911,2]
[363708796,1748833833969,-430.0,0.00019911,2]
[363708797,1748833833979,-430.0,0.00019911,2]
[363708798,1748833833990,-430.0,0.00019911,2]
[363708799,1748833834001,-430.0,0.00019911,2]
[363708800,1748833834012,-430.0,0.00019912,2]
[363708801,1748833834022,-430.0,0.00019912,2]
[363708802,1748833834033,-1281.85672635,0.00019934,2]
[363708803,1748833834045,-251.11897888,0.00019948,2]
[363708804,1748833834055,-279.74242234,0.0002,5]
[363708805,1748833834066,-300.37836947,0.0002,2]
[363708806,1748833834076,-151.93172327,0.0002,2]
[363708807,1748833834087,-260.4103811,0.00020003,2]
[363708808,1748833834097,-270.0455652,0.00020058,2]
[363708809,1748833834108,-1046.69542658,0.00020084,2]
[363708810,1748833834118,-1281.85672635,0.00020107,2]
[363708811,1748833834129,-280.03725112,0.00020113,2]
[363708812,1748833834140,-1500.0,0.00020129,2]
[363708813,1748833834150,-290.39862941,0.00020168,2]
[363708814,1748833834160,-430.0,0.00020185,2]
[363708815,1748833834171,-579.56,0.00020185,2]
[363708816,1748833834180,-430.0,0.00020185,2]
[363708817,1748833834191,-430.0,0.00020185,2]
[363708818,1748833834205,-446.72,0.00020185,2]
[363708819,1748833834216,-430.0,0.00020185,2]
[363708820,1748833834226,-430.0,0.00020185,2]
[363708821,1748833834236,-956.82,0.00020185,2]
[363708822,1748833834247,-430.0,0.00020185,2]
[363708823,1748833834258,-430.0,0.00020185,2]
[363708824,1748833834269,-430.0,0.00020185,2]
[363708825,1748833834279,-430.0,0.00020185,2]
[363708826,1748833834289,-650.71,0.00020185,2]
[363708827,1748833834300,-905.34,0.00020185,2]
[363708828,1748833834310,-430.0,0.00020185,2]
[363708829,1748833834320,-430.0,0.00020185,2]
[363708830,1748833834330,-430.0,0.00020185,2]
[363708831,1748833834341,-430.0,0.00020185,2]
[363708832,1748833834351,-430.0,0.00020185,2]
[363708833,1748833834362,-430.0,0.00020186,2]
[363708834,1748833834372,-430.0,0.00020186,2]
[363708835,1748833834383,-245.660377,0.00020187,2]
[363708836,1748833834393,-310.82659213,0.00020223,2]
[363708837,1748833834404,-504.60333227,0.0002023,2]
[363708838,1748833834414,-505.26177206,0.0002023,2]
[363708839,1748833834424,-1737.31,0.00020279,2]
[363708840,1748833834435,-1281.85672635,0.00020279,3]
[363708841,1748833834445,-1000.0,0.00020298,2]
[363708842,1748833834457,-1000.0,0.00020321,2]
[363708843,1748833834467,-1281.85672635,0.00020452,3]
[363708844,1748833834476,-430.0,0.00020459,2]
[363708845,1748833834486,-579.56,0.00020459,2]
[363708846,1748833834496,-430.0,0.00020459,2]
[363708847,1748833834506,-430.0,0.00020459,2]
[363708848,1748833834517,-446.72,0.00020459,2]
[363708849,1748833834527,-430.0,0.00020459,2]
[363708850,1748833834537,-430.0,0.00020459,2]
[363708851,1748833834547,-956.82,0.00020459,2]
[363708852,1748833834557,-430.0,0.00020459,2]
[363708853,1748833834568,-430.0,0.00020459,2]
[363708854,1748833834578,-430.0,0.00020459,2]
[363708855,1748833834588,-430.0,0.00020459,2]
[363708856,1748833834599,-650.71,0.00020459,2]
[363708857,1748833834609,-905.34,0.00020459,2]
[363708858,1748833834619,-496.92527064,0.00020459,2]
[363708859,1748833834631,-430.0,0.00020459,2]
[363708860,1748833834642,-430.0,0.00020459,2]
[363708861,1748833834652,-430.0,0.00020459,2]
[363708862,1748833834662,-430.0,0.00020459,2]
[363708863,1748833834672,-430.0,0.0002046,2]
[363708864,1748833834682,-430.0,0.0002046,2]
[363708865,1748833834691,-161.54268993,0.0002046,2]
[363708866,1748833834701,-420.0,0.00020511,2]
[363708867,1748833834711,-875.54,0.00020547,2]
[363708868,1748833834720,-1281.85672635,0.00020624,3]
[363708869,1748833834731,-500.0,0.0002073,2]
[363708870,1748833834740,-430.0,0.00020733,2]
[363708871,1748833834750,-579.56,0.00020733,2]
[363708872,1748833834759,-430.0,0.00020733,2]
[363708873,1748833834767,-430.0,0.00020733,2]
[363708874,1748833834800,-446.72,0.00020733,2]
[363708875,1748833834809,-430.0,0.00020733,2]
[363708876,1748833834819,-430.0,0.00020733,2]
[363708877,1748833834828,-956.82,0.00020733,2]
[363708878,1748833834838,-430.0,0.00020733,2]